[Event "Torneo Nuevo Centro. Jornada 11"]
[Site "Chess.com"]
[Date "2020.08.28"]
[Round "3"]
[White "Conon, Catalin"]
[Black "Escalona Moncholi, Felix"]
[Result "0-1"]
[WhiteElo "1924"]
[BlackElo "2112"]
[TimeControl "180+2"]
[EndTime "11:00:02 PDT"]
[Termination "Victoria de SchachSpielerESP por abandono"]

1. e4 {[%clk 0:03:01.9]} 1... e6 {[%clk 0:03:00.2]} 2. Qe2 {[%clk 0:03:02.9]}
2... c5 {[%clk 0:03:00.6]} 3. Nf3 {[%clk 0:03:02.6]} 3... Nc6 {[%clk 0:03:02.2]}
4. c3 {[%clk 0:03:03.6]} 4... g6 {[%clk 0:03:00.9]} 5. d4 {[%clk 0:03:04.4]}
5... cxd4 {[%clk 0:03:01.5]} 6. cxd4 {[%clk 0:03:06.3]} 6... Bg7 {[%clk
0:03:00.2]} 7. d5 {[%clk 0:03:07.5]} 7... Ne5 {[%clk 0:02:56.6]} 8. Nxe5 {[%clk
0:03:08.2]} 8... Bxe5 {[%clk 0:02:57]} 9. Nc3 {[%clk 0:03:09.4]} 9... Ne7 {[%clk
0:02:49.5]} 10. Bg5 {[%clk 0:02:45]} 10... Qa5 {[%clk 0:02:36.8]} 11. Qd3 {[%clk
0:02:18.1]} 11... d6 {[%clk 0:01:56.8]} 12. Bxe7 {[%clk 0:02:17.9]} 12... Kxe7
{[%clk 0:01:57.2]} 13. Be2 {[%clk 0:01:54.6]} 13... exd5 {[%clk 0:01:38.3]} 14.
exd5 {[%clk 0:01:27.5]} 14... Re8 {[%clk 0:01:26.6]} 15. O-O {[%clk 0:01:28.1]}
15... Kf8 {[%clk 0:01:24.3]} 16. Bf3 {[%clk 0:01:06.4]} 16... Kg8 {[%clk
0:01:18.6]} 17. Qb5 {[%clk 0:00:52.1]} 17... Qd8 {[%clk 0:01:15.2]} 18. Rac1
{[%clk 0:00:43.7]} 18... a6 {[%clk 0:01:12.9]} 19. Qd3 {[%clk 0:00:43.7]} 19...
Bf5 {[%clk 0:01:10.2]} 20. Be4 {[%clk 0:00:43]} 20... Bxe4 {[%clk 0:00:47.3]}
21. Nxe4 {[%clk 0:00:44.9]} 21... Qh4 {[%clk 0:00:40.2]} 22. Ng3 {[%clk
0:00:43.4]} 22... Rac8 {[%clk 0:00:37]} 23. b3 {[%clk 0:00:42.9]} 23... Kg7
{[%clk 0:00:34.5]} 24. Rc4 {[%clk 0:00:41.6]} 24... Rxc4 {[%clk 0:00:33.6]} 25.
Qxc4 {[%clk 0:00:37.2]} 25... Qxc4 {[%clk 0:00:34.4]} 26. bxc4 {[%clk
0:00:39.1]} 26... Rc8 {[%clk 0:00:35.6]} 27. Rc1 {[%clk 0:00:39.9]} 27... b5
{[%clk 0:00:36.3]} 28. Ne2 {[%clk 0:00:26.2]} 28... Rxc4 {[%clk 0:00:36.9]} 29.
Kf1 {[%clk 0:00:21.5]} 29... Rxc1+ {[%clk 0:00:33.1]} 30. Nxc1 {[%clk
0:00:23.4]} 30... f5 {[%clk 0:00:33.6]} 31. Ke2 {[%clk 0:00:24.1]} 31... Kf6
{[%clk 0:00:33.1]} 32. Nb3 {[%clk 0:00:24.9]} 32... Bc3 {[%clk 0:00:32.9]} 33.
f4 {[%clk 0:00:22.7]} 33... h6 {[%clk 0:00:30.4]} 34. Kd3 {[%clk 0:00:23.3]}
34... Be1 {[%clk 0:00:20.1]} 35. Nd4 {[%clk 0:00:14.8]} 35... Bf2 {[%clk
0:00:19.6]} 36. Ne6 {[%clk 0:00:14]} 36... g5 {[%clk 0:00:19.4]} 37. g3 {[%clk
0:00:08.2]} 37... gxf4 {[%clk 0:00:19.8]} 38. gxf4 {[%clk 0:00:10.1]} 38... Bg1
{[%clk 0:00:21.4]} 39. h3 {[%clk 0:00:10.8]} 39... Bh2 {[%clk 0:00:22.5]} 40.
Ke3 {[%clk 0:00:12.3]} 40... a5 {[%clk 0:00:23.3]} 41. Nc7 {[%clk 0:00:12.6]}
41... b4 {[%clk 0:00:23.7]} 42. Nb5 {[%clk 0:00:14]} 42... Bg1+ {[%clk
0:00:22.9]} 43. Kd3 {[%clk 0:00:14.6]} 43... Bc5 {[%clk 0:00:23.8]} 44. h4
{[%clk 0:00:07.2]} 44... Kg6 {[%clk 0:00:24.8]} 45. Nc7 {[%clk 0:00:03.8]} 45...
Kh5 {[%clk 0:00:25.5]} 46. Ne8 {[%clk 0:00:05.2]} 46... Kxh4 {[%clk 0:00:24.9]}
47. Ng7 {[%clk 0:00:06.7]} 47... Kg4 {[%clk 0:00:25]} 48. Ne6 {[%clk 0:00:08.3]}
48... Bb6 {[%clk 0:00:22.6]} 49. Kc4 {[%clk 0:00:09.4]} 49... h5 {[%clk
0:00:18]} 50. Kb5 {[%clk 0:00:11.3]} 50... Be3 {[%clk 0:00:19]} 51. Kxa5 {[%clk
0:00:11.1]} 51... Bxf4 {[%clk 0:00:18.2]} 52. Kxb4 {[%clk 0:00:12.2]} 52... h4
{[%clk 0:00:19.3]} 53. a4 {[%clk 0:00:06]} 53... Bd2+ {[%clk 0:00:20]} 54. Kc4
{[%clk 0:00:06.9]} 54... h3 {[%clk 0:00:21.8]} 55. Nd4 {[%clk 0:00:04.1]} 55...
h2 {[%clk 0:00:21.1]} 0

[Event "Torneo Nuevo Centro. Jornada 11"]
[Site "Chess.com"]
[Date "2020.08.28"]
[Round "3"]
[White "Soliva Ruiz, Ramon"]
[Black "Yuste Valenzuela, Alejandro"]
[Result "0-1"]
[WhiteElo "1519"]
[BlackElo "1876"]
[TimeControl "180+2"]
[EndTime "11:00:29 PDT"]
[Termination "Victoria de alejandrito290 por abandono"]

1. d4 {[%clk 0:03:01.9]} 1... Nf6 {[%clk 0:03:00]} 2. Bf4 {[%clk 0:03:01.2]}
2... g6 {[%clk 0:02:59.8]} 3. e3 {[%clk 0:03:00.8]} 3... Bg7 {[%clk 0:03:00.2]}
4. c3 {[%clk 0:03:00.6]} 4... O-O {[%clk 0:03:00.5]} 5. Nf3 {[%clk 0:02:53.9]}
5... d6 {[%clk 0:03:00.1]} 6. Be2 {[%clk 0:02:46]} 6... c5 {[%clk 0:03:01]} 7.
Nfd2 {[%clk 0:02:43.3]} 7... Nc6 {[%clk 0:02:46.7]} 8. Na3 {[%clk 0:02:37.2]}
8... e5 {[%clk 0:02:43.7]} 9. dxe5 {[%clk 0:02:30.7]} 9... dxe5 {[%clk
0:02:45.6]} 10. Bg5 {[%clk 0:02:28.7]} 10... h6 {[%clk 0:02:46]} 11. Bxf6 {[%clk
0:02:28.1]} 11... Bxf6 {[%clk 0:02:47.9]} 12. Ne4 {[%clk 0:02:26.9]} 12... Be7
{[%clk 0:02:28]} 13. Nb5 {[%clk 0:02:01.3]} 13... Be6 {[%clk 0:02:14.6]} 14. O-O
{[%clk 0:01:39.9]} 14... Bd5 {[%clk 0:01:48.3]} 15. Qc2 {[%clk 0:01:31.7]} 15...
a6 {[%clk 0:01:32.7]} 16. Na3 {[%clk 0:01:32]} 16... Qc7 {[%clk 0:01:30]} 17.
Nc4 {[%clk 0:01:16.3]} 17... b5 {[%clk 0:01:21.1]} 18. Ncd2 {[%clk 0:01:15.3]}
18... f5 {[%clk 0:01:17.7]} 19. Ng3 {[%clk 0:01:10]} 19... h5 {[%clk 0:01:16.5]}
20. Bf3 {[%clk 0:00:29.8]} 20... e4 {[%clk 0:01:15.8]} 21. Bd1 {[%clk
0:00:30.2]} 21... h4 {[%clk 0:01:16.4]} 22. Ne2 {[%clk 0:00:31.1]} 22... g5
{[%clk 0:01:14.7]} 23. a3 {[%clk 0:00:21.6]} 23... a5 {[%clk 0:00:47.3]} 24. c4
{[%clk 0:00:19.2]} 24... bxc4 {[%clk 0:00:41.4]} 25. Nxc4 {[%clk 0:00:19.2]}
25... Ne5 {[%clk 0:00:37.6]} 26. Nxe5 {[%clk 0:00:17.6]} 26... Qxe5 {[%clk
0:00:39.5]} 27. Qc3 {[%clk 0:00:11.4]} 27... Bd6 {[%clk 0:00:31.3]} 28. g3
{[%clk 0:00:11.8]} 28... h3 {[%clk 0:00:23.3]} 29. Qxe5 {[%clk 0:00:11.8]} 29...
Bxe5 {[%clk 0:00:25.2]} 30. Nc3 {[%clk 0:00:11.8]} 30... Bxc3 {[%clk 0:00:26.2]}
31. bxc3 {[%clk 0:00:12.1]} 31... Bc4 {[%clk 0:00:24.9]} 32. Re1 {[%clk
0:00:10]} 32... Rab8 {[%clk 0:00:24.9]} 33. Be2 {[%clk 0:00:11.1]} 33... Bd3
{[%clk 0:00:21.4]} 34. Bxd3 {[%clk 0:00:11.2]} 34... exd3 {[%clk 0:00:23.3]} 35.
Rab1 {[%clk 0:00:09.5]} 35... c4 {[%clk 0:00:24]} 36. Kf1 {[%clk 0:00:06.6]}
36... Kf7 {[%clk 0:00:24.7]} 37. Red1 {[%clk 0:00:06.9]} 37... Ke6 {[%clk
0:00:24]} 38. Ke1 {[%clk 0:00:08.3]} 38... Kd6 {[%clk 0:00:21.1]} 39. Kd2 {[%clk
0:00:09.7]} 39... Kc7 {[%clk 0:00:20.6]} 40. f3 {[%clk 0:00:09.4]} 40... g4
{[%clk 0:00:17.2]} 41. f4 {[%clk 0:00:08.7]} 41... Rxb1 {[%clk 0:00:13.2]} 42.
Rxb1 {[%clk 0:00:09.2]} 42... Re8 {[%clk 0:00:12.2]} 43. Rb5 {[%clk 0:00:09.9]}
43... a4 {[%clk 0:00:11]} 44. Rxf5 {[%clk 0:00:10.5]} 44... Rb8 {[%clk
0:00:12.1]} 45. Rc5+ {[%clk 0:00:07.2]} 45... Kd6 {[%clk 0:00:12.1]} 46. Rxc4
{[%clk 0:00:08.3]} 46... Rb2+ {[%clk 0:00:13]} 47. Kd1 {[%clk 0:00:09]} 47...
Rxh2 {[%clk 0:00:13.5]} 48. Rxa4 {[%clk 0:00:09.6]} 48... Rg2 {[%clk 0:00:11]}
49. Ra6+ {[%clk 0:00:11]} 49... Kd5 {[%clk 0:00:11.8]} 50. Rh6 {[%clk
0:00:12.3]} 50... Ke4 {[%clk 0:00:11.3]} 51. a4 {[%clk 0:00:11.2]} 51... Kxe3
{[%clk 0:00:11.5]} 52. Re6+ {[%clk 0:00:12.1]} 52... Kf3 {[%clk 0:00:12.7]} 53.
Rh6 {[%clk 0:00:13.1]} 53... h2 {[%clk 0:00:13.8]} 54. a5 {[%clk 0:00:13.5]}
54... Rg1+ {[%clk 0:00:14.9]} 55. Kd2 {[%clk 0:00:14]} 55... h1=Q {[%clk
0:00:16.2]} 56. Rxh1 {[%clk 0:00:15.1]} 56... Rxh1 {[%clk 0:00:18.1]} 57. Kxd3
{[%clk 0:00:16.4]} 57... Ra1 {[%clk 0:00:19.5]} 58. Kc4 {[%clk 0:00:16.2]} 58...
Rxa5 {[%clk 0:00:20.7]} 59. Kb4 {[%clk 0:00:16.6]} 59... Ra8 {[%clk 0:00:21.5]}
60. c4 {[%clk 0:00:17.8]} 60... Kxg3 {[%clk 0:00:22.8]} 61. f5 {[%clk
0:00:19.2]} 61... Kf4 {[%clk 0:00:23.3]} 62. f6 {[%clk 0:00:20.6]} 62... g3
{[%clk 0:00:23.8]} 0

[Event "Torneo Nuevo Centro. Jornada 11"]
[Site "Chess.com"]
[Date "2020.08.28"]
[Round "3"]
[White "Hernández Tomás, Efrén"]
[Black "Fernández Martin, Carlos"]
[Result "0-1"]
[WhiteElo "1112"]
[BlackElo "1777"]
[TimeControl "180+2"]
[EndTime "11:00:40 PDT"]
[Termination "Victoria de Pistachomortal por jaque mate"]

1. e4 {[%clk 0:03:01.9]} 1... c5 {[%clk 0:02:58.8]} 2. Nf3 {[%clk 0:03:02.2]}
2... d6 {[%clk 0:03:00.2]} 3. Bc4 {[%clk 0:03:03]} 3... Nf6 {[%clk 0:03:00.6]}
4. d4 {[%clk 0:03:03.4]} 4... cxd4 {[%clk 0:02:57.9]} 5. Qxd4 {[%clk 0:03:03.5]}
5... Nc6 {[%clk 0:02:58.5]} 6. Qd1 {[%clk 0:03:00.3]} 6... a6 {[%clk 0:02:59.1]}
7. Bd5 {[%clk 0:03:01.2]} 7... e6 {[%clk 0:02:58.3]} 8. Bxc6+ {[%clk 0:03:01.6]}
8... bxc6 {[%clk 0:03:00.2]} 9. e5 {[%clk 0:03:01.1]} 9... Nd5 {[%clk
0:02:57.6]} 10. exd6 {[%clk 0:03:01.1]} 10... Bxd6 {[%clk 0:02:57.9]} 11. Be3
{[%clk 0:02:55]} 11... O-O {[%clk 0:02:50.4]} 12. Qd4 {[%clk 0:02:51.8]} 12...
Bb7 {[%clk 0:02:41.6]} 13. Nc3 {[%clk 0:02:52]} 13... Qe7 {[%clk 0:02:29]} 14.
Nxd5 {[%clk 0:02:52.3]} 14... cxd5 {[%clk 0:02:28.2]} 15. Ng5 {[%clk 0:02:50.5]}
15... h6 {[%clk 0:02:20.3]} 16. Nf3 {[%clk 0:02:44.9]} 16... Rac8 {[%clk
0:02:20.7]} 17. O-O-O {[%clk 0:02:43.8]} 17... Bc5 {[%clk 0:02:19]} 18. Qd2
{[%clk 0:02:38.7]} 18... Rfd8 {[%clk 0:02:13]} 19. Bxc5 {[%clk 0:02:36.1]} 19...
Qxc5 {[%clk 0:02:12.8]} 20. c3 {[%clk 0:02:33.2]} 20... f6 {[%clk 0:01:59.9]}
21. Nd4 {[%clk 0:02:29.8]} 21... Rd6 {[%clk 0:01:46.9]} 22. Nb3 {[%clk
0:02:23.2]} 22... Qc7 {[%clk 0:01:40.9]} 23. Nd4 {[%clk 0:02:20.7]} 23... e5
{[%clk 0:01:40.9]} 24. Nf5 {[%clk 0:02:20.1]} 24... Rdd8 {[%clk 0:01:38.9]} 25.
Qe3 {[%clk 0:02:20.2]} 25... d4 {[%clk 0:01:35.3]} 26. Qg3 {[%clk 0:02:20.3]}
26... Be4 {[%clk 0:01:07.7]} 27. Nh4 {[%clk 0:02:03.9]} 27... dxc3 {[%clk
0:01:05]} 28. Qxc3 {[%clk 0:02:02.3]} 28... Qxc3+ {[%clk 0:01:03.7]} 29. bxc3
{[%clk 0:02:02.2]} 29... Rxc3+ {[%clk 0:01:04.9]} 30. Kb2 {[%clk 0:02:02.5]}
30... Rc2+ {[%clk 0:01:04.1]} 31. Kb3 {[%clk 0:02:00.1]} 31... Rb8+ {[%clk
0:01:04.1]} 32. Ka3 {[%clk 0:01:59.3]} 32... Rbb2 {[%clk 0:01:00.5]} 33. Ra1
{[%clk 0:01:53.5]} 33... Bd5 {[%clk 0:00:55.2]} 34. Rhd1 {[%clk 0:01:48.1]}
34... Bxa2 {[%clk 0:00:49.4]} 35. Rd8+ {[%clk 0:01:43.2]} 35... Kh7 {[%clk
0:00:48.7]} 36. Nf5 {[%clk 0:01:41.9]} 36... Rb3+ {[%clk 0:00:43.7]} 37. Ka4
{[%clk 0:01:41]} 37... Rc4+ {[%clk 0:00:39.5]} 38. Ka5 {[%clk 0:01:40.9]} 38...
Ra3+ {[%clk 0:00:38.5]} 39. Kb6 {[%clk 0:01:40.7]} 39... Rb4+ {[%clk 0:00:30.9]}
40. Kc5 {[%clk 0:01:37.5]} 40... Rb5+ {[%clk 0:00:31.3]} 41. Kc6 {[%clk
0:01:34.6]} 41... Rc3+ {[%clk 0:00:27.4]} 42. Kd7 {[%clk 0:01:32.9]} 42... Rd5+
{[%clk 0:00:20.6]} 43. Ke7 {[%clk 0:01:29.7]} 43... Rc7+ {[%clk 0:00:21]} 44.
Ke8 {[%clk 0:01:28.5]} 44... Rxd8+ {[%clk 0:00:19]} 45. Kxd8 {[%clk 0:01:29]}
45... Rc2 {[%clk 0:00:19.4]} 46. Ke7 {[%clk 0:01:26.8]} 46... Rxf2 {[%clk
0:00:19.4]} 47. g4 {[%clk 0:01:21.9]} 47... Bd5 {[%clk 0:00:18]} 48. Rxa6 {[%clk
0:01:20.7]} 48... Bf3 {[%clk 0:00:17.6]} 49. Kf7 {[%clk 0:01:21.5]} 49... Bxg4
{[%clk 0:00:18.3]} 50. Nxg7 {[%clk 0:01:20.2]} 50... Rxh2 {[%clk 0:00:17.2]} 51.
Ra8 {[%clk 0:01:19.1]} 51... Bh5+ {[%clk 0:00:17.5]} 52. Kf8 {[%clk 0:01:14.6]}
52... Kg6 {[%clk 0:00:16.2]} 53. Ne6 {[%clk 0:01:11.3]} 53... Kf5 {[%clk
0:00:16.5]} 54. Ng7+ {[%clk 0:01:11.3]} 54... Kg5 {[%clk 0:00:17.2]} 55. Nxh5
{[%clk 0:01:12.1]} 55... Kxh5 {[%clk 0:00:18.1]} 56. Ra6 {[%clk 0:01:11.5]}
56... Kg5 {[%clk 0:00:19.1]} 57. Ra5 {[%clk 0:01:09.4]} 57... Re2 {[%clk
0:00:19.5]} 58. Kg7 {[%clk 0:01:08.8]} 58... h5 {[%clk 0:00:20.7]} 59. Ra4
{[%clk 0:01:02.9]} 59... h4 {[%clk 0:00:21.3]} 60. Kf7 {[%clk 0:01:01.8]} 60...
h3 {[%clk 0:00:22]} 61. Ra1 {[%clk 0:00:59]} 61... h2 {[%clk 0:00:22]} 62. Rh1
{[%clk 0:00:59.5]} 62... f5 {[%clk 0:00:22.8]} 63. Ke6 {[%clk 0:00:59.8]} 63...
f4 {[%clk 0:00:24]} 64. Kd5 {[%clk 0:00:58.6]} 64... f3 {[%clk 0:00:24.8]} 65.
Ke6 {[%clk 0:00:56.7]} 65... Rg2 {[%clk 0:00:25.6]} 66. Kxe5 {[%clk 0:00:54.6]}
66... f2 {[%clk 0:00:26.7]} 67. Rd1 {[%clk 0:00:53.5]} 67... Rg1 {[%clk
0:00:27.2]} 68. Rd2 {[%clk 0:00:52.8]} 68... f1=Q {[%clk 0:00:27.6]} 69. Rxh2
{[%clk 0:00:52.2]} 69... Qf4+ {[%clk 0:00:28.7]} 70. Ke6 {[%clk 0:00:51.1]}
70... Qxh2 {[%clk 0:00:29.5]} 71. Kf7 {[%clk 0:00:51.7]} 71... Qf2+ {[%clk
0:00:29.7]} 72. Kg7 {[%clk 0:00:52.7]} 72... Kf4+ {[%clk 0:00:30.7]} 73. Kf6
{[%clk 0:00:53.4]} 73... Ke4+ {[%clk 0:00:31.7]} 74. Ke6 {[%clk 0:00:54.3]}
74... Qf5+ {[%clk 0:00:32.4]} 75. Kd6 {[%clk 0:00:54.7]} 75... Rg6+ {[%clk
0:00:33.7]} 76. Ke7 {[%clk 0:00:54.8]} 76... Qf6+ {[%clk 0:00:33.6]} 77. Kd7
{[%clk 0:00:54.8]} 77... Qf7+ {[%clk 0:00:34.5]} 78. Kd8 {[%clk 0:00:54.9]}
78... Rg8# {[%clk 0:00:35.6]} 0

[Event "Torneo Nuevo Centro. Jornada 11"]
[Site "Chess.com"]
[Date "2020.08.28"]
[Round "3"]
[White "Perrot, Fabien "]
[Black "Alegre Romaguera, Francesc"]
[Result "1-0"]
[WhiteElo "1162"]
[BlackElo "1305"]
[TimeControl "180+2"]
[EndTime "11:00:59 PDT"]
[Termination "Victoria de InspiredMinds por tiempo"]

1. d4 {[%clk 0:03:01.9]} 1... e5 {[%clk 0:02:59.9]} 2. dxe5 {[%clk 0:03:00.2]}
2... Nc6 {[%clk 0:02:52.4]} 3. Nf3 {[%clk 0:02:38.1]} 3... Qe7 {[%clk
0:02:44.4]} 4. Bf4 {[%clk 0:02:29.8]} 4... Qb4+ {[%clk 0:02:42.9]} 5. Bd2 {[%clk
0:02:25]} 5... Qxb2 {[%clk 0:02:42]} 6. Nc3 {[%clk 0:02:21.6]} 6... Nb4 {[%clk
0:02:26.4]} 7. Nd4 {[%clk 0:02:05.5]} 7... c5 {[%clk 0:02:18.3]} 8. Rb1 {[%clk
0:02:01.6]} 8... Qa3 {[%clk 0:01:51.8]} 9. Rb3 {[%clk 0:01:53.2]} 9... Qa5
{[%clk 0:01:44.1]} 10. Ndb5 {[%clk 0:01:42.9]} 10... a6 {[%clk 0:01:27.6]} 11.
Nd6+ {[%clk 0:01:41.6]} 11... Bxd6 {[%clk 0:01:27.2]} 12. exd6 {[%clk
0:01:39.8]} 12... c4 {[%clk 0:01:05.4]} 13. Rb2 {[%clk 0:01:37.3]} 13... Qa3
{[%clk 0:00:58.9]} 14. Qc1 {[%clk 0:01:22.2]} 14... Nf6 {[%clk 0:00:46.2]} 15.
e3 {[%clk 0:01:13]} 15... b5 {[%clk 0:00:45.2]} 16. Nb1 {[%clk 0:01:10.5]} 16...
Qa5 {[%clk 0:00:23.8]} 17. Bxb4 {[%clk 0:01:01.1]} 17... Qa4 {[%clk 0:00:21.2]}
18. Be2 {[%clk 0:00:39.7]} 18... Nd5 {[%clk 0:00:13.9]} 19. O-O {[%clk
0:00:29.9]} 19... Nxb4 {[%clk 0:00:11.6]} 20. Qd1 {[%clk 0:00:26.8]} 20... Bb7
{[%clk 0:00:07.2]} 21. c3 {[%clk 0:00:24.3]} 21... Nxa2 {[%clk 0:00:07.2]} 22.
Qxa4 {[%clk 0:00:21.6]} 22... bxa4 {[%clk 0:00:08.4]} 23. Rxa2 {[%clk
0:00:18.4]} 23... O-O {[%clk 0:00:07.3]} 24. Rxa4 {[%clk 0:00:19.1]} 24... Bc6
{[%clk 0:00:06.7]} 25. Rxc4 {[%clk 0:00:17.9]} 25... Bb5 {[%clk 0:00:07.5]} 26.
Rb4 {[%clk 0:00:18.4]} 26... Bxe2 {[%clk 0:00:08]} 27. Re1 {[%clk 0:00:20.3]}
27... Bd3 {[%clk 0:00:08.6]} 28. Nd2 {[%clk 0:00:20.7]} 28... Rab8 {[%clk
0:00:08.9]} 29. Rd4 {[%clk 0:00:17.6]} 29... Bg6 {[%clk 0:00:06.8]} 30. h3
{[%clk 0:00:17.9]} 30... Rb2 {[%clk 0:00:05.6]} 31. Nf3 {[%clk 0:00:16.1]} 31...
Rfb8 {[%clk 0:00:05.5]} 32. Rd2 {[%clk 0:00:16.6]} 32... Rxd2 {[%clk 0:00:03.3]}
33. Nxd2 {[%clk 0:00:18.5]} 33... a5 {[%clk 0:00:03.2]} 34. Kf1 {[%clk
0:00:18.6]} 34... a4 {[%clk 0:00:04.4]} 35. Nc4 {[%clk 0:00:18.4]} 35... Bd3+
{[%clk 0:00:04.9]} 36. Kg1 {[%clk 0:00:18.5]} 36... Bxc4 {[%clk 0:00:06.8]} 37.
Ra1 {[%clk 0:00:19.4]} 37... Rb2 {[%clk 0:00:06.5]} 38. Rxa4 {[%clk 0:00:18.8]}
38... Rb1+ {[%clk 0:00:06.4]} 39. Kh2 {[%clk 0:00:20.2]} 39... h6 {[%clk
0:00:06.4]} 40. Rxc4 {[%clk 0:00:21.1]} 40... Rb2 {[%clk 0:00:07.1]} 41. Kg3
{[%clk 0:00:20.6]} 41... g5 {[%clk 0:00:07.2]} 42. Rc7 {[%clk 0:00:22.1]} 42...
Kg7 {[%clk 0:00:07.7]} 43. Rxd7 {[%clk 0:00:23.5]} 43... Rd2 {[%clk 0:00:08.3]}
44. c4 {[%clk 0:00:21.3]} 44... Kf6 {[%clk 0:00:07.3]} 45. c5 {[%clk 0:00:21.1]}
45... Ke6 {[%clk 0:00:07.5]} 46. c6 {[%clk 0:00:20.4]} 46... Rxd6 {[%clk
0:00:06.1]} 47. Rxd6+ {[%clk 0:00:20.8]} 47... Kxd6 {[%clk 0:00:06.6]} 48. Kg4
{[%clk 0:00:20.5]} 48... Kxc6 {[%clk 0:00:05.7]} 49. Kf5 {[%clk 0:00:22.1]}
49... Kd7 {[%clk 0:00:04.8]} 50. Kf6 {[%clk 0:00:21.4]} 50... Ke8 {[%clk
0:00:05.3]} 51. Kg7 {[%clk 0:00:22.5]} 51... h5 {[%clk 0:00:05.4]} 52. Kh6
{[%clk 0:00:22.6]} 52... g4 {[%clk 0:00:06.2]} 53. hxg4 {[%clk 0:00:22.6]} 53...
hxg4 {[%clk 0:00:06.6]} 54. Kg5 {[%clk 0:00:23.8]} 54... Kf8 {[%clk 0:00:05.4]}
55. Kxg4 {[%clk 0:00:24.7]} 55... Kg7 {[%clk 0:00:06.8]} 56. f4 {[%clk
0:00:25.1]} 56... Kg6 {[%clk 0:00:07.1]} 57. Kf3 {[%clk 0:00:26.3]} 57... Kf5
{[%clk 0:00:07.9]} 58. g4+ {[%clk 0:00:26.5]} 58... Kg6 {[%clk 0:00:08.9]} 59.
e4 {[%clk 0:00:27.8]} 59... Kf6 {[%clk 0:00:08.7]} 60. g5+ {[%clk 0:00:26.2]}
60... Kg6 {[%clk 0:00:08.6]} 61. Kg4 {[%clk 0:00:27.4]} 61... Kg7 {[%clk
0:00:06.7]} 62. f5 {[%clk 0:00:28.5]} 62... Kh7 {[%clk 0:00:05.9]} 63. e5 {[%clk
0:00:28.6]} 63... Kg7 {[%clk 0:00:06.1]} 64. e6 {[%clk 0:00:25.3]} 1

[Event "Torneo Nuevo Centro. Jornada 11"]
[Site "Chess.com"]
[Date "2020.08.28"]
[Round "3"]
[White "Fenollar Jorda, Manolo"]
[Black "Pedros Viudes, Santiago"]
[Result "1-0"]
[WhiteElo "2467"]
[BlackElo "1934"]
[TimeControl "180+2"]
[EndTime "11:01:01 PDT"]
[Termination "Victoria de Cucudrulu por jaque mate"]

1. d4 {[%clk 0:03:01.9]} 1... Nf6 {[%clk 0:03:00.4]} 2. Nf3 {[%clk 0:03:02.8]}
2... d5 {[%clk 0:03:00.7]} 3. e3 {[%clk 0:03:03.4]} 3... Bf5 {[%clk 0:02:59.6]}
4. Bd3 {[%clk 0:03:03]} 4... Bg6 {[%clk 0:02:41.6]} 5. Ne5 {[%clk 0:02:58.7]}
5... e6 {[%clk 0:02:42.1]} 6. O-O {[%clk 0:02:56.1]} 6... Bd6 {[%clk 0:01:42.8]}
7. f4 {[%clk 0:02:54.9]} 7... Bxd3 {[%clk 0:01:34.9]} 8. cxd3 {[%clk 0:02:54.1]}
8... Nbd7 {[%clk 0:01:33.4]} 9. Bd2 {[%clk 0:02:50.2]} 9... c5 {[%clk
0:01:34.2]} 10. dxc5 {[%clk 0:02:32.5]} 10... Bxe5 {[%clk 0:01:25.4]} 11. fxe5
{[%clk 0:02:31.4]} 11... Nxe5 {[%clk 0:01:27.3]} 12. Bc3 {[%clk 0:02:22.2]}
12... Ned7 {[%clk 0:01:17.9]} 13. b4 {[%clk 0:02:01.9]} 13... e5 {[%clk
0:01:12.5]} 14. Nd2 {[%clk 0:01:59]} 14... O-O {[%clk 0:01:10.5]} 15. Qe2 {[%clk
0:01:45]} 15... a5 {[%clk 0:01:00.8]} 16. a3 {[%clk 0:01:45.1]} 16... Qe7 {[%clk
0:00:59.2]} 17. Nb3 {[%clk 0:01:41.9]} 17... axb4 {[%clk 0:00:58.5]} 18. axb4
{[%clk 0:01:43.8]} 18... e4 {[%clk 0:00:54.9]} 19. d4 {[%clk 0:01:23.2]} 19...
Qe6 {[%clk 0:00:38.7]} 20. h3 {[%clk 0:01:13.6]} 20... g6 {[%clk 0:00:36.1]} 21.
Rxa8 {[%clk 0:01:08.3]} 21... Rxa8 {[%clk 0:00:36.4]} 22. Ra1 {[%clk 0:01:09.9]}
22... Rxa1+ {[%clk 0:00:36.4]} 23. Nxa1 {[%clk 0:01:11.8]} 23... Nh5 {[%clk
0:00:17.5]} 24. Nb3 {[%clk 0:00:58.5]} 24... Ng3 {[%clk 0:00:17.7]} 25. Qb5
{[%clk 0:00:49.2]} 25... Qc6 {[%clk 0:00:17]} 26. Qxc6 {[%clk 0:00:47.8]} 26...
bxc6 {[%clk 0:00:18.9]} 27. Kf2 {[%clk 0:00:40.6]} 27... Nf5 {[%clk 0:00:11.2]}
28. Na5 {[%clk 0:00:27.8]} 28... Ne7 {[%clk 0:00:11.4]} 29. Ke2 {[%clk
0:00:23.5]} 29... Kf8 {[%clk 0:00:11.6]} 30. Be1 {[%clk 0:00:24.3]} 30... Nb8
{[%clk 0:00:10.9]} 31. Bg3 {[%clk 0:00:24]} 31... Na6 {[%clk 0:00:08.7]} 32. Be1
{[%clk 0:00:22.9]} 32... Ke8 {[%clk 0:00:08.8]} 33. Kd1 {[%clk 0:00:24.2]} 33...
Kd7 {[%clk 0:00:09.8]} 34. Kc2 {[%clk 0:00:25.8]} 34... Nf5 {[%clk 0:00:10.8]}
35. Bd2 {[%clk 0:00:24.3]} 35... h5 {[%clk 0:00:09.8]} 36. Kb3 {[%clk
0:00:24.6]} 36... Nh4 {[%clk 0:00:10]} 37. g3 {[%clk 0:00:22.3]} 37... Nf3
{[%clk 0:00:11.1]} 38. Bc3 {[%clk 0:00:23.3]} 38... Ng1 {[%clk 0:00:11.4]} 39.
h4 {[%clk 0:00:22.6]} 39... Ne2 {[%clk 0:00:11.7]} 40. Be1 {[%clk 0:00:22.8]}
40... f6 {[%clk 0:00:13]} 41. Nb7 {[%clk 0:00:19.8]} 41... g5 {[%clk 0:00:13.6]}
42. Nd6 {[%clk 0:00:19.5]} 42... gxh4 {[%clk 0:00:13.3]} 43. gxh4 {[%clk
0:00:21.4]} 43... Ng1 {[%clk 0:00:14.7]} 44. Nf5 {[%clk 0:00:20.7]} 44... Nf3
{[%clk 0:00:15.4]} 45. Bg3 {[%clk 0:00:22.2]} 45... Nc7 {[%clk 0:00:13.1]} 46.
Ng7 {[%clk 0:00:21.6]} 46... Ne6 {[%clk 0:00:10.8]} 47. Nxh5 {[%clk 0:00:21.2]}
47... Ke7 {[%clk 0:00:11.2]} 48. Ka4 {[%clk 0:00:12]} 48... Nexd4 {[%clk
0:00:09.2]} 49. exd4 {[%clk 0:00:12.4]} 49... Nxd4 {[%clk 0:00:11.1]} 50. Nf4
{[%clk 0:00:10]} 50... Nc2 {[%clk 0:00:06.7]} 51. b5 {[%clk 0:00:08.2]} 51...
cxb5+ {[%clk 0:00:07.3]} 52. Kxb5 {[%clk 0:00:10.1]} 52... e3 {[%clk 0:00:07.4]}
53. Nd3 {[%clk 0:00:07]} 53... e2 {[%clk 0:00:07.1]} 54. Kb6 {[%clk 0:00:06.6]}
54... Nd4 {[%clk 0:00:09]} 55. c6 {[%clk 0:00:07.4]} 55... Nf5 {[%clk
0:00:06.6]} 56. Be1 {[%clk 0:00:07.2]} 56... Nd6 {[%clk 0:00:06.2]} 57. h5
{[%clk 0:00:07.8]} 57... Nc4+ {[%clk 0:00:04.6]} 58. Kc5 {[%clk 0:00:08.9]}
58... Na5 {[%clk 0:00:03.2]} 59. h6 {[%clk 0:00:09.9]} 59... Nxc6 {[%clk
0:00:03.4]} 60. Kxc6 {[%clk 0:00:11.8]} 60... Kf7 {[%clk 0:00:05.2]} 61. Kxd5
{[%clk 0:00:12.1]} 61... Kg6 {[%clk 0:00:06.4]} 62. Bd2 {[%clk 0:00:12.9]} 62...
f5 {[%clk 0:00:07.7]} 63. Ke5 {[%clk 0:00:13.7]} 63... e1=Q+ {[%clk 0:00:07.9]}
64. Nxe1 {[%clk 0:00:14.4]} 64... f4 {[%clk 0:00:05.6]} 65. Bxf4 {[%clk
0:00:16.3]} 65... Kh7 {[%clk 0:00:06.7]} 66. Kf6 {[%clk 0:00:15.9]} 66... Kh8
{[%clk 0:00:08.6]} 67. Kg6 {[%clk 0:00:17.8]} 67... Kg8 {[%clk 0:00:09.2]} 68.
h7+ {[%clk 0:00:19.7]} 68... Kh8 {[%clk 0:00:11.1]} 69. Be5# {[%clk 0:00:21]}
1